[Event "Early-Titled-Tuesday-Blitz-August-29-2023"]
[Site "Chess.com"]
[Date "2023.08.29"]
[Round "4"]
[White "noblerone"]
[Black "SchmakAttack"]
[Result "0-1"]
[WhiteElo "2557"]
[BlackElo "2810"]
[TimeControl "180+1"]
[EndTime "8:40:07 PDT"]
[Termination "SchmakAttack won by resignation"]

1. d4 {[%clk 0:02:55.2]} 1... Nf6 {[%clk 0:02:59.5]} 2. Nf3 {[%clk 0:02:54.8]}
2... d5 {[%clk 0:02:58.5]} 3. Bg5 {[%clk 0:02:55.4]} 3... Ne4 {[%clk 0:02:58.5]}
4. Bf4 {[%clk 0:02:55.7]} 4... c5 {[%clk 0:02:58.8]} 5. e3 {[%clk 0:02:55.7]}
5... Nc6 {[%clk 0:02:58.9]} 6. c3 {[%clk 0:02:54.6]} 6... Qb6 {[%clk 0:02:56.8]}
7. Qb3 {[%clk 0:02:54.9]} 7... c4 {[%clk 0:02:56.9]} 8. Qxb6 {[%clk 0:02:54.6]}
8... axb6 {[%clk 0:02:57.8]} 9. Nfd2 {[%clk 0:02:55.4]} 9... Bf5 {[%clk
0:02:48.5]} 10. Be2 {[%clk 0:02:55.1]} 10... b5 {[%clk 0:02:47.7]} 11. Bf3
{[%clk 0:02:50.1]} 11... g5 {[%clk 0:02:22.1]} 12. Bg3 {[%clk 0:02:26.5]} 12...
h5 {[%clk 0:02:19.8]} 13. Bc7 {[%clk 0:02:13.2]} 13... Kd7 {[%clk 0:01:55.2]}
14. Bb6 {[%clk 0:02:06.6]} 14... e6 {[%clk 0:01:49.4]} 15. Nxe4 {[%clk
0:01:47.7]} 15... dxe4 {[%clk 0:01:49.6]} 16. Be2 {[%clk 0:01:48]} 16... Ne7
{[%clk 0:01:29]} 17. Bc5 {[%clk 0:01:39.6]} 17... Nd5 {[%clk 0:01:29]} 18. Bxf8
{[%clk 0:01:27.2]} 18... Raxf8 {[%clk 0:01:23.7]} 19. Nd2 {[%clk 0:01:18.7]}
19... g4 {[%clk 0:01:13.3]} 20. Rc1 {[%clk 0:01:04.3]} 20... Ra8 {[%clk
0:01:12.9]} 21. a3 {[%clk 0:01:04.4]} 21... Bg6 {[%clk 0:01:08.6]} 22. g3 {[%clk
0:01:02.2]} 22... f5 {[%clk 0:01:07]} 23. h4 {[%clk 0:01:01.8]} 23... Kd6 {[%clk
0:00:59.7]} 24. Bd1 {[%clk 0:00:58.5]} 24... e5 {[%clk 0:00:59.1]} 25. Bc2
{[%clk 0:00:52.3]} 25... exd4 {[%clk 0:00:58.7]} 26. exd4 {[%clk 0:00:51.5]}
26... e3 {[%clk 0:00:53.3]} 27. Nf1 {[%clk 0:00:49.7]} 27... Rhe8 {[%clk
0:00:51.2]} 28. Rh2 {[%clk 0:00:36.5]} 28... e2 {[%clk 0:00:31]} 29. Nd2 {[%clk
0:00:29.2]} 29... Re6 {[%clk 0:00:29.5]} 30. Rb1 {[%clk 0:00:17.3]} 30... Rae8
{[%clk 0:00:28.6]} 31. Rc1 {[%clk 0:00:17.6]} 31... f4 {[%clk 0:00:27]} 32. Bxg6
{[%clk 0:00:09.8]} 32... Rxg6 {[%clk 0:00:25.6]} 33. Rg2 {[%clk 0:00:07.7]}
33... f3 {[%clk 0:00:11.9]} 34. Rh2 {[%clk 0:00:06.6]} 34... Nb6 {[%clk
0:00:11.9]} 35. Rc2 {[%clk 0:00:05.1]} 35... Kd5 {[%clk 0:00:11.4]} 36. Rh1
{[%clk 0:00:05]} 36... Na4 {[%clk 0:00:11.4]} 37. Rg1 {[%clk 0:00:05.2]} 37...
Rge6 {[%clk 0:00:11.3]} 38. Nb1 {[%clk 0:00:04.8]} 38... Ke4 {[%clk 0:00:10.7]}
39. Rd2 {[%clk 0:00:04.1]} 39... Rd6 {[%clk 0:00:10.1]} 40. Rh1 {[%clk
0:00:03.6]} 40... Kd5 {[%clk 0:00:10.4]} 41. Rg1 {[%clk 0:00:04]} 41... Nb6
{[%clk 0:00:09.8]} 42. Rh1 {[%clk 0:00:02.9]} 42... Nc8 {[%clk 0:00:10.2]} 43.
Rc2 {[%clk 0:00:03]} 43... Na7 {[%clk 0:00:10.4]} 44. Rd2 {[%clk 0:00:02.8]}
44... Nc6 {[%clk 0:00:10.8]} 45. Rc2 {[%clk 0:00:03.2]} 45... Na5 {[%clk
0:00:11.2]} 46. Rd2 {[%clk 0:00:02.8]} 46... Nb3 {[%clk 0:00:11.6]} 47. Rc2
{[%clk 0:00:03.4]} 47... Ra8 {[%clk 0:00:10.5]} 48. Nd2 {[%clk 0:00:03.7]} 48...
Re6 {[%clk 0:00:07.1]} 49. Nxb3 {[%clk 0:00:03]} 49... cxb3 {[%clk 0:00:08]} 50.
Rd2 {[%clk 0:00:03.7]} 50... Re4 {[%clk 0:00:05.5]} 51. Rd3 {[%clk 0:00:03.1]}
51... Kc4 {[%clk 0:00:04.8]} 52. Kd2 {[%clk 0:00:02.5]} 52... e1=Q+ {[%clk
0:00:04.3]} 53. Rxe1 {[%clk 0:00:02.8]} 53... Rxe1 {[%clk 0:00:05.2]} 54. d5
{[%clk 0:00:02.9]} 54... Re2+ {[%clk 0:00:05.4]} 55. Kd1 {[%clk 0:00:03.3]}
55... Kxd3 {[%clk 0:00:05.9]} 0-1

[Event "Early-Titled-Tuesday-Blitz-August-29-2023"]
[Site "Chess.com"]
[Date "2023.08.29"]
[Round "4"]
[White "Aygehovit1992"]
[Black "reevecanada"]
[Result "1-0"]
[WhiteElo "2742"]
[BlackElo "2511"]
[TimeControl "180+1"]
[EndTime "8:40:08 PDT"]
[Termination "Aygehovit1992 won by checkmate"]

1. e4 {[%clk 0:03:00.9]} 1... c5 {[%clk 0:02:57.4]} 2. Nc3 {[%clk 0:03:00.3]}
2... Nc6 {[%clk 0:02:52.1]} 3. Bb5 {[%clk 0:02:59.8]} 3... Nd4 {[%clk
0:02:51.9]} 4. Nf3 {[%clk 0:03:00.2]} 4... g6 {[%clk 0:02:50.6]} 5. O-O {[%clk
0:02:59.9]} 5... Bg7 {[%clk 0:02:50.8]} 6. Re1 {[%clk 0:02:59.8]} 6... e6 {[%clk
0:02:51.1]} 7. e5 {[%clk 0:02:54.5]} 7... a6 {[%clk 0:02:50.8]} 8. Bf1 {[%clk
0:02:50.7]} 8... b5 {[%clk 0:02:50.3]} 9. Ne4 {[%clk 0:02:47.3]} 9... f5 {[%clk
0:02:16.4]} 10. Nd6+ {[%clk 0:02:30.7]} 10... Kf8 {[%clk 0:02:15.5]} 11. c3
{[%clk 0:02:25.2]} 11... Nxf3+ {[%clk 0:02:14.4]} 12. Qxf3 {[%clk 0:02:25.6]}
12... Rb8 {[%clk 0:02:14.7]} 13. d4 {[%clk 0:02:24.5]} 13... c4 {[%clk
0:02:13.5]} 14. a4 {[%clk 0:02:21.8]} 14... Ne7 {[%clk 0:02:10.4]} 15. axb5
{[%clk 0:02:21.9]} 15... axb5 {[%clk 0:02:10.5]} 16. Bg5 {[%clk 0:02:20.6]}
16... h6 {[%clk 0:02:08.8]} 17. Bxe7+ {[%clk 0:02:17.5]} 17... Kxe7 {[%clk
0:02:07.7]} 18. Ra7 {[%clk 0:02:13.3]} 18... Qb6 {[%clk 0:02:00.3]} 19. Rea1
{[%clk 0:02:12.4]} 19... Rd8 {[%clk 0:01:58]} 20. Qg3 {[%clk 0:02:00.4]} 20...
g5 {[%clk 0:01:57.3]} 21. Qh3 {[%clk 0:02:00.2]} 21... Kf8 {[%clk 0:01:15.5]}
22. Qh5 {[%clk 0:01:49.5]} 22... Kg8 {[%clk 0:01:14.6]} 23. Qf7+ {[%clk
0:01:49.4]} 23... Kh7 {[%clk 0:01:13.7]} 24. Nxc8 {[%clk 0:01:47.9]} 24... Rbxc8
{[%clk 0:01:09.3]} 25. R1a6 {[%clk 0:01:45.8]} 25... Qb8 {[%clk 0:01:01.7]} 26.
g4 {[%clk 0:01:34.9]} 26... Rc6 {[%clk 0:00:34.9]} 27. gxf5 {[%clk 0:01:25.9]}
27... exf5 {[%clk 0:00:31.9]} 28. Rxc6 {[%clk 0:01:14.3]} 28... Qxa7 {[%clk
0:00:30.8]} 29. Rg6 {[%clk 0:01:13.2]} 29... Rg8 {[%clk 0:00:30.6]} 30. Qxf5
{[%clk 0:00:49.6]} 30... Kh8 {[%clk 0:00:29]} 31. Rd6 {[%clk 0:00:41.5]} 31...
Qa2 {[%clk 0:00:26.5]} 32. Qh3 {[%clk 0:00:31.3]} 32... Kh7 {[%clk 0:00:21.3]}
33. Qxd7 {[%clk 0:00:25.7]} 33... Qxb2 {[%clk 0:00:20.5]} 34. Bh3 {[%clk
0:00:26.1]} 34... Qb1+ {[%clk 0:00:19.9]} 35. Bf1 {[%clk 0:00:22.2]} 35... Qe4
{[%clk 0:00:20.5]} 36. h3 {[%clk 0:00:09.7]} 36... b4 {[%clk 0:00:20.8]} 37.
cxb4 {[%clk 0:00:09.7]} 37... c3 {[%clk 0:00:21.3]} 38. Qc6 {[%clk 0:00:08]}
38... Qc2 {[%clk 0:00:16.9]} 39. e6 {[%clk 0:00:04.5]} 39... Qd2 {[%clk
0:00:17]} 40. Qe4+ {[%clk 0:00:04.6]} 40... Kh8 {[%clk 0:00:16.5]} 41. e7 {[%clk
0:00:05.2]} 41... c2 {[%clk 0:00:17.1]} 42. e8=Q {[%clk 0:00:05.6]} 42... c1=Q
{[%clk 0:00:13]} 43. Q8g6 {[%clk 0:00:05.5]} 43... Qxf2+ {[%clk 0:00:09.3]} 44.
Kxf2 {[%clk 0:00:05.7]} 44... Rf8+ {[%clk 0:00:08.6]} 45. Qgf5 {[%clk
0:00:03.6]} 45... Qb2+ {[%clk 0:00:06.6]} 46. Be2 {[%clk 0:00:03.8]} 46... Rxf5+
{[%clk 0:00:06.3]} 47. Qxf5 {[%clk 0:00:04.7]} 47... Bxd4+ {[%clk 0:00:06.7]}
48. Kf1 {[%clk 0:00:04.4]} 48... Qa1+ {[%clk 0:00:06.7]} 49. Kg2 {[%clk
0:00:04.4]} 49... Qg1+ {[%clk 0:00:06.5]} 50. Kf3 {[%clk 0:00:05]} 50... Qf2+
{[%clk 0:00:05.9]} 51. Ke4 {[%clk 0:00:05.4]} 51... Qxe2+ {[%clk 0:00:04.4]} 52.
Kxd4 {[%clk 0:00:05.5]} 52... Qd2+ {[%clk 0:00:04.5]} 53. Ke5 {[%clk 0:00:05.7]}
53... Qc3+ {[%clk 0:00:03.5]} 54. Ke6 {[%clk 0:00:05.8]} 54... Qc4+ {[%clk
0:00:03]} 55. Qd5 {[%clk 0:00:06]} 55... Qe2+ {[%clk 0:00:03.7]} 56. Qe5+ {[%clk
0:00:06.3]} 56... Qxe5+ {[%clk 0:00:03.6]} 57. Kxe5 {[%clk 0:00:07.2]} 57... Kg7
{[%clk 0:00:04.1]} 58. b5 {[%clk 0:00:07.6]} 58... Kh7 {[%clk 0:00:05]} 59. b6
{[%clk 0:00:08.5]} 59... Kg7 {[%clk 0:00:05.9]} 60. b7 {[%clk 0:00:09.3]} 60...
Kh7 {[%clk 0:00:06.8]} 61. b8=Q {[%clk 0:00:09.9]} 61... Kg7 {[%clk 0:00:07.7]}
62. Qc7+ {[%clk 0:00:10.5]} 62... Kh8 {[%clk 0:00:08.6]} 63. Rd8# {[%clk
0:00:11.4]} 1-0

[Event "Early-Titled-Tuesday-Blitz-August-29-2023"]
[Site "Chess.com"]
[Date "2023.08.29"]
[Round "4"]
[White "Kubas1010"]
[Black "YEIKO2017"]
[Result "0-1"]
[WhiteElo "2664"]
[BlackElo "2469"]
[TimeControl "180+1"]
[EndTime "8:40:14 PDT"]
[Termination "YEIKO2017 won on time"]

1. Nf3 {[%clk 0:03:00.9]} 1... c5 {[%clk 0:02:34.4]} 2. e4 {[%clk 0:02:57.6]}
2... Nf6 {[%clk 0:02:32.8]} 3. e5 {[%clk 0:02:55.5]} 3... Nd5 {[%clk 0:02:32.7]}
4. Nc3 {[%clk 0:02:56.3]} 4... Nxc3 {[%clk 0:02:32.7]} 5. dxc3 {[%clk
0:02:57.2]} 5... Nc6 {[%clk 0:02:32.9]} 6. Bc4 {[%clk 0:02:52.5]} 6... e6 {[%clk
0:02:28.8]} 7. O-O {[%clk 0:02:48.5]} 7... Qc7 {[%clk 0:02:19.6]} 8. Qe2 {[%clk
0:02:42.8]} 8... b6 {[%clk 0:02:18.8]} 9. Bf4 {[%clk 0:02:35.7]} 9... Bb7 {[%clk
0:02:10.8]} 10. Nd2 {[%clk 0:02:33.9]} 10... f5 {[%clk 0:02:04.5]} 11. Rfe1
{[%clk 0:02:28.1]} 11... Be7 {[%clk 0:01:56.7]} 12. h4 {[%clk 0:02:23.9]} 12...
O-O-O {[%clk 0:01:54.6]} 13. g3 {[%clk 0:02:03.3]} 13... h6 {[%clk 0:01:50]} 14.
h5 {[%clk 0:02:02.2]} 14... Rdg8 {[%clk 0:01:29.1]} 15. Ba6 {[%clk 0:02:01.9]}
15... g5 {[%clk 0:01:27.7]} 16. hxg6 {[%clk 0:02:01.1]} 16... Rxg6 {[%clk
0:01:28.3]} 17. Bxb7+ {[%clk 0:01:37.1]} 17... Kxb7 {[%clk 0:01:25.8]} 18. Qh5
{[%clk 0:01:36.5]} 18... Rhg8 {[%clk 0:01:21]} 19. a4 {[%clk 0:01:32.4]} 19...
Bg5 {[%clk 0:01:20.8]} 20. Bxg5 {[%clk 0:01:22]} 20... Rxg5 {[%clk 0:01:06.8]}
21. Qf3 {[%clk 0:01:20.8]} 21... Kb8 {[%clk 0:00:58.4]} 22. Nc4 {[%clk
0:01:13.4]} 22... h5 {[%clk 0:00:52.8]} 23. Kf1 {[%clk 0:01:12.9]} 23... h4
{[%clk 0:00:52.3]} 24. gxh4 {[%clk 0:01:12.9]} 24... Rg1+ {[%clk 0:00:48.1]} 25.
Ke2 {[%clk 0:01:10.3]} 25... Rxe1+ {[%clk 0:00:48.6]} 26. Rxe1 {[%clk
0:01:09.3]} 26... Nxe5 {[%clk 0:00:49]} 27. Nxe5 {[%clk 0:01:07]} 27... Qxe5+
{[%clk 0:00:48.3]} 28. Kd2 {[%clk 0:01:05.6]} 28... Qd6+ {[%clk 0:00:42.1]} 29.
Kc1 {[%clk 0:01:05.4]} 29... Rg4 {[%clk 0:00:41.8]} 30. Rd1 {[%clk 0:01:04.3]}
30... Qc7 {[%clk 0:00:34.7]} 31. h5 {[%clk 0:01:02.8]} 31... Rxa4 {[%clk
0:00:31.7]} 32. Kb1 {[%clk 0:00:57]} 32... Rh4 {[%clk 0:00:29.4]} 33. Rg1 {[%clk
0:00:55.5]} 33... Qf4 {[%clk 0:00:17.9]} 34. Rg8+ {[%clk 0:00:39.5]} 34... Kc7
{[%clk 0:00:17.5]} 35. Qa8 {[%clk 0:00:37.2]} 35... Kd6 {[%clk 0:00:15.5]} 36.
Rg1 {[%clk 0:00:21]} 36... Qe4 {[%clk 0:00:09.5]} 37. Qxa7 {[%clk 0:00:17.3]}
37... Rh1 {[%clk 0:00:09.5]} 38. Qxb6+ {[%clk 0:00:17.1]} 38... Ke7 {[%clk
0:00:06.5]} 39. Qxc5+ {[%clk 0:00:17.1]} 39... Kf7 {[%clk 0:00:06.6]} 40. Rxh1
{[%clk 0:00:09.1]} 40... Qxh1+ {[%clk 0:00:07.5]} 41. Ka2 {[%clk 0:00:09.5]}
41... Qxh5 {[%clk 0:00:08.3]} 42. f4 {[%clk 0:00:08.6]} 42... Qe2 {[%clk
0:00:07.6]} 43. Qd4 {[%clk 0:00:07.5]} 43... Qa6+ {[%clk 0:00:07.4]} 44. Kb3
{[%clk 0:00:07.9]} 44... Qb5+ {[%clk 0:00:07.7]} 45. Ka3 {[%clk 0:00:08]} 45...
Qa6+ {[%clk 0:00:07.6]} 46. Kb3 {[%clk 0:00:04.8]} 46... Qb5+ {[%clk 0:00:07.8]}
47. Ka3 {[%clk 0:00:04.6]} 47... Qa6+ {[%clk 0:00:08.1]} 48. Kb4 {[%clk
0:00:04.7]} 48... Qb7+ {[%clk 0:00:07.2]} 49. Ka5 {[%clk 0:00:04.1]} 49... Qa8+
{[%clk 0:00:06.4]} 50. Kb6 {[%clk 0:00:03.2]} 50... Qb8+ {[%clk 0:00:06.4]} 51.
Ka6 {[%clk 0:00:03.3]} 51... Qxb2 {[%clk 0:00:06.3]} 52. Qxd7+ {[%clk
0:00:02.8]} 52... Kf6 {[%clk 0:00:07]} 53. Qd4+ {[%clk 0:00:02.8]} 53... Kf7
{[%clk 0:00:07.6]} 54. Ka5 {[%clk 0:00:02.2]} 54... Qxc2 {[%clk 0:00:06.1]} 55.
Kb5 {[%clk 0:00:01.8]} 55... Qb2+ {[%clk 0:00:05]} 56. Kc6 {[%clk 0:00:01.2]}
56... Qb3 {[%clk 0:00:04.4]} 0-1

[Event "Early-Titled-Tuesday-Blitz-August-29-2023"]
[Site "Chess.com"]
[Date "2023.08.29"]
[Round "4"]
[White "AlexNovitz"]
[Black "CADMartin"]
[Result "0-1"]
[WhiteElo "2226"]
[BlackElo "2469"]
[TimeControl "180+1"]
[EndTime "8:40:15 PDT"]
[Termination "CADMartin won on time"]

1. e4 {[%clk 0:03:00.9]} 1... e5 {[%clk 0:01:19.1]} 2. Nf3 {[%clk 0:02:59.4]}
2... Nc6 {[%clk 0:01:19.6]} 3. Bb5 {[%clk 0:02:58.7]} 3... Nf6 {[%clk
0:01:19.2]} 4. O-O {[%clk 0:02:58]} 4... Nxe4 {[%clk 0:01:19.1]} 5. Re1 {[%clk
0:02:56.5]} 5... Nd6 {[%clk 0:01:18.9]} 6. Bf1 {[%clk 0:02:56.2]} 6... Be7
{[%clk 0:01:17.8]} 7. Nxe5 {[%clk 0:02:55]} 7... Nxe5 {[%clk 0:01:18.7]} 8. Rxe5
{[%clk 0:02:55]} 8... O-O {[%clk 0:01:19.6]} 9. d4 {[%clk 0:02:54.9]} 9... Bf6
{[%clk 0:01:19.9]} 10. Re1 {[%clk 0:02:54.8]} 10... c6 {[%clk 0:01:20.5]} 11.
Bf4 {[%clk 0:02:50.8]} 11... Nf5 {[%clk 0:01:19.6]} 12. Bd3 {[%clk 0:02:44.5]}
12... d5 {[%clk 0:01:08.6]} 13. c3 {[%clk 0:02:44.5]} 13... Be6 {[%clk
0:01:05.3]} 14. Nd2 {[%clk 0:02:42.3]} 14... Qd7 {[%clk 0:01:01.5]} 15. Nf3
{[%clk 0:02:39.9]} 15... Nd6 {[%clk 0:00:59.5]} 16. Qc2 {[%clk 0:02:31.9]} 16...
g6 {[%clk 0:00:58.1]} 17. Bh6 {[%clk 0:02:27.2]} 17... Rfe8 {[%clk 0:00:57.4]}
18. Ne5 {[%clk 0:02:24.2]} 18... Bxe5 {[%clk 0:00:56.9]} 19. Rxe5 {[%clk
0:02:14.9]} 19... Bf5 {[%clk 0:00:57.1]} 20. Rae1 {[%clk 0:02:10]} 20... f6
{[%clk 0:00:55.5]} 21. R5e2 {[%clk 0:01:47.9]} 21... Kf7 {[%clk 0:00:50.9]} 22.
Bf4 {[%clk 0:01:46.4]} 22... Bxd3 {[%clk 0:00:49.6]} 23. Qxd3 {[%clk 0:01:44.9]}
23... Nf5 {[%clk 0:00:49.4]} 24. h3 {[%clk 0:01:34.7]} 24... Rxe2 {[%clk
0:00:45.7]} 25. Rxe2 {[%clk 0:01:34.8]} 25... Re8 {[%clk 0:00:46.5]} 26. g4
{[%clk 0:01:23.3]} 26... Ng7 {[%clk 0:00:40.4]} 27. Bg3 {[%clk 0:01:19.6]} 27...
Ne6 {[%clk 0:00:34.8]} 28. Qe3 {[%clk 0:01:12.5]} 28... Ng5 {[%clk 0:00:31.2]}
29. Qxe8+ {[%clk 0:01:07.8]} 29... Qxe8 {[%clk 0:00:32.1]} 30. Rxe8 {[%clk
0:01:06.9]} 30... Kxe8 {[%clk 0:00:33]} 31. Kg2 {[%clk 0:01:04.2]} 31... Kd7
{[%clk 0:00:28.6]} 32. f3 {[%clk 0:01:00.1]} 32... Ne6 {[%clk 0:00:18.5]} 33.
Kf2 {[%clk 0:00:57.8]} 33... a5 {[%clk 0:00:17.8]} 34. Ke2 {[%clk 0:00:55.4]}
34... a4 {[%clk 0:00:17.8]} 35. a3 {[%clk 0:00:54.8]} 35... b5 {[%clk
0:00:17.9]} 36. Kd3 {[%clk 0:00:55]} 36... Nd8 {[%clk 0:00:17.9]} 37. h4 {[%clk
0:00:51.9]} 37... Nb7 {[%clk 0:00:18]} 38. Bf4 {[%clk 0:00:48.2]} 38... Na5
{[%clk 0:00:18]} 39. Bc1 {[%clk 0:00:47.6]} 39... Nc4 {[%clk 0:00:17.3]} 40. f4
{[%clk 0:00:39.9]} 40... h5 {[%clk 0:00:14.9]} 41. g5 {[%clk 0:00:21.7]} 41...
fxg5 {[%clk 0:00:14.6]} 42. fxg5 {[%clk 0:00:22.6]} 42... Ke6 {[%clk 0:00:14.6]}
43. Ke2 {[%clk 0:00:23.3]} 43... Kf5 {[%clk 0:00:15.5]} 44. Kf3 {[%clk
0:00:23.8]} 44... Nd6 {[%clk 0:00:15.6]} 45. Bf4 {[%clk 0:00:17.2]} 45... Ne4
{[%clk 0:00:15.2]} 46. Bc1 {[%clk 0:00:12.4]} 46... Nd6 {[%clk 0:00:14.9]} 47.
Bf4 {[%clk 0:00:12]} 47... Ne8 {[%clk 0:00:14.6]} 48. Bc1 {[%clk 0:00:11.5]}
48... Nc7 {[%clk 0:00:14.5]} 49. Bf4 {[%clk 0:00:11.4]} 49... Ne6 {[%clk
0:00:13.6]} 50. Bc1 {[%clk 0:00:10.8]} 50... Nd8 {[%clk 0:00:14.2]} 51. Bf4
{[%clk 0:00:10.8]} 51... Nb7 {[%clk 0:00:15.1]} 52. Bc1 {[%clk 0:00:10.8]} 52...
Na5 {[%clk 0:00:15.5]} 53. Bf4 {[%clk 0:00:09.8]} 53... Nb3 {[%clk 0:00:16.2]}
54. Be3 {[%clk 0:00:09]} 54... Na1 {[%clk 0:00:13.9]} 55. Bc1 {[%clk 0:00:06.6]}
55... Nb3 {[%clk 0:00:13.3]} 56. Be3 {[%clk 0:00:06.7]} 56... Ke6 {[%clk
0:00:11.5]} 57. Bf4 {[%clk 0:00:06.5]} 57... c5 {[%clk 0:00:10.1]} 58. dxc5
{[%clk 0:00:04.8]} 58... Nxc5 {[%clk 0:00:11]} 59. Be3 {[%clk 0:00:01.8]} 59...
Nb3 {[%clk 0:00:11.1]} 60. Bd4 {[%clk 0:00:02.3]} 60... Nxd4+ {[%clk 0:00:10.5]}
61. cxd4 {[%clk 0:00:02.3]} 61... Kf5 {[%clk 0:00:11.4]} 0-1

[Event "Early-Titled-Tuesday-Blitz-August-29-2023"]
[Site "Chess.com"]
[Date "2023.08.29"]
[Round "4"]
[White "Forge13"]
[Black "regular_legs"]
[Result "1/2-1/2"]
[WhiteElo "2663"]
[BlackElo "2515"]
[TimeControl "180+1"]
[EndTime "8:40:16 PDT"]
[Termination "Game drawn by stalemate"]

1. e4 {[%clk 0:03:00.9]} 1... c6 {[%clk 0:02:56.7]} 2. Nf3 {[%clk 0:03:00]} 2...
d5 {[%clk 0:02:57.6]} 3. d3 {[%clk 0:03:00.6]} 3... Bg4 {[%clk 0:02:56.7]} 4. h3
{[%clk 0:03:00.1]} 4... Bh5 {[%clk 0:02:56.8]} 5. g4 {[%clk 0:03:00.4]} 5... Bg6
{[%clk 0:02:56.8]} 6. Ne5 {[%clk 0:03:00.9]} 6... dxe4 {[%clk 0:02:51.7]} 7.
Nxg6 {[%clk 0:02:59.2]} 7... hxg6 {[%clk 0:02:50.6]} 8. dxe4 {[%clk 0:02:59.9]}
8... Qxd1+ {[%clk 0:02:42.6]} 9. Kxd1 {[%clk 0:03:00.8]} 9... Nf6 {[%clk
0:02:42.9]} 10. f3 {[%clk 0:03:00.9]} 10... Nbd7 {[%clk 0:02:34.3]} 11. Be3
{[%clk 0:02:57.7]} 11... e5 {[%clk 0:02:32.9]} 12. Bc4 {[%clk 0:02:36]} 12...
Bc5 {[%clk 0:02:32.8]} 13. Bd2 {[%clk 0:02:36]} 13... Ke7 {[%clk 0:02:27]} 14.
a4 {[%clk 0:02:35.3]} 14... Rh7 {[%clk 0:02:09.2]} 15. Na3 {[%clk 0:02:27.4]}
15... Rah8 {[%clk 0:02:06.7]} 16. Bf1 {[%clk 0:02:27.6]} 16... Nf8 {[%clk
0:01:48.1]} 17. Nc4 {[%clk 0:02:23.4]} 17... N6d7 {[%clk 0:01:47.8]} 18. b4
{[%clk 0:02:20.7]} 18... Bf2 {[%clk 0:01:43.9]} 19. Ke2 {[%clk 0:02:19]} 19...
Bg3 {[%clk 0:01:41.2]} 20. Na5 {[%clk 0:02:02.7]} 20... Ne6 {[%clk 0:01:41.1]}
21. Be3 {[%clk 0:02:02.6]} 21... Bf4 {[%clk 0:01:06.8]} 22. Nxb7 {[%clk
0:01:48.3]} 22... Bxe3 {[%clk 0:00:51.5]} 23. Kxe3 {[%clk 0:01:49.2]} 23... Nd4
{[%clk 0:00:41.7]} 24. Ra2 {[%clk 0:01:48.7]} 24... Rb8 {[%clk 0:00:40.7]} 25.
Na5 {[%clk 0:01:48]} 25... Rc8 {[%clk 0:00:20.3]} 26. Bc4 {[%clk 0:01:38.3]}
26... f5 {[%clk 0:00:19]} 27. c3 {[%clk 0:01:26.5]} 27... Ne6 {[%clk 0:00:18.3]}
28. Bxe6 {[%clk 0:01:25.8]} 28... Kxe6 {[%clk 0:00:19.2]} 29. h4 {[%clk
0:01:19.8]} 29... fxg4 {[%clk 0:00:18.2]} 30. fxg4 {[%clk 0:01:20.2]} 30... Nf6
{[%clk 0:00:18.6]} 31. g5 {[%clk 0:01:12.9]} 31... Nh5 {[%clk 0:00:18.4]} 32.
Rd2 {[%clk 0:01:05.6]} 32... Nf4 {[%clk 0:00:16.6]} 33. Nb7 {[%clk 0:01:03.7]}
33... Rc7 {[%clk 0:00:12.2]} 34. Nc5+ {[%clk 0:01:03.6]} 34... Ke7 {[%clk
0:00:12.3]} 35. Nd3 {[%clk 0:00:56.1]} 35... Nxd3 {[%clk 0:00:10.1]} 36. Rxd3
{[%clk 0:00:57]} 36... Rh8 {[%clk 0:00:10.3]} 37. c4 {[%clk 0:00:52.8]} 37... a5
{[%clk 0:00:09.1]} 38. b5 {[%clk 0:00:52.7]} 38... cxb5 {[%clk 0:00:09.3]} 39.
cxb5 {[%clk 0:00:52.4]} 39... Rc4 {[%clk 0:00:09.9]} 40. Rhd1 {[%clk 0:00:49.9]}
40... Rxh4 {[%clk 0:00:09.3]} 41. Rd7+ {[%clk 0:00:49.5]} 41... Kf8 {[%clk
0:00:07.8]} 42. Rd8+ {[%clk 0:00:48.6]} 42... Ke7 {[%clk 0:00:08]} 43. R1d7+
{[%clk 0:00:49.1]} 43... Ke6 {[%clk 0:00:07.4]} 44. Rd6+ {[%clk 0:00:47.7]}
44... Ke7 {[%clk 0:00:07.5]} 45. R8d7+ {[%clk 0:00:48.1]} 45... Ke8 {[%clk
0:00:07.6]} 46. Rxg7 {[%clk 0:00:43]} 46... Rhxe4+ {[%clk 0:00:07.5]} 47. Kd3
{[%clk 0:00:43.3]} 47... Red4+ {[%clk 0:00:07.5]} 48. Rxd4 {[%clk 0:00:42.4]}
48... Rxd4+ {[%clk 0:00:08.4]} 49. Ke3 {[%clk 0:00:41.8]} 49... Rxa4 {[%clk
0:00:08.5]} 50. Rxg6 {[%clk 0:00:42.4]} 50... Rb4 {[%clk 0:00:07.6]} 51. Rb6
{[%clk 0:00:39.3]} 51... Kf7 {[%clk 0:00:06.7]} 52. Kf3 {[%clk 0:00:32.8]} 52...
a4 {[%clk 0:00:06.7]} 53. Ra6 {[%clk 0:00:31.8]} 53... Rxb5 {[%clk 0:00:06.3]}
54. Ke4 {[%clk 0:00:28.8]} 54... Kg7 {[%clk 0:00:02.6]} 55. Kf5 {[%clk
0:00:25.1]} 55... e4+ {[%clk 0:00:02.5]} 56. Kf4 {[%clk 0:00:25.7]} 56... Rb7
{[%clk 0:00:02.2]} 57. Rxa4 {[%clk 0:00:22.5]} 57... Re7 {[%clk 0:00:02.4]} 58.
Rxe4 {[%clk 0:00:19.6]} 58... Rxe4+ {[%clk 0:00:02]} 59. Kxe4 {[%clk 0:00:20.5]}
59... Kg6 {[%clk 0:00:02.7]} 60. Kf4 {[%clk 0:00:21.4]} 60... Kg7 {[%clk
0:00:03.1]} 61. Kf5 {[%clk 0:00:22.3]} 61... Kf7 {[%clk 0:00:03.4]} 62. Ke5
{[%clk 0:00:23.2]} 62... Kg6 {[%clk 0:00:03.8]} 63. Kf4 {[%clk 0:00:24.1]} 63...
Kg7 {[%clk 0:00:04.5]} 64. Kf5 {[%clk 0:00:25]} 64... Kf7 {[%clk 0:00:05.1]} 65.
g6+ {[%clk 0:00:25.9]} 65... Kg7 {[%clk 0:00:05.5]} 66. Kg5 {[%clk 0:00:26.8]}
66... Kg8 {[%clk 0:00:05.8]} 67. Kf5 {[%clk 0:00:27.7]} 67... Kg7 {[%clk
0:00:06.1]} 68. Kg5 {[%clk 0:00:28.3]} 68... Kg8 {[%clk 0:00:06.7]} 69. Kf4
{[%clk 0:00:29.1]} 69... Kg7 {[%clk 0:00:07.2]} 70. Kf5 {[%clk 0:00:30]} 70...
Kg8 {[%clk 0:00:07.4]} 71. Ke6 {[%clk 0:00:30.9]} 71... Kg7 {[%clk 0:00:07.8]}
72. Kf5 {[%clk 0:00:31.4]} 72... Kg8 {[%clk 0:00:08.1]} 73. Kf6 {[%clk
0:00:32.3]} 73... Kf8 {[%clk 0:00:08.1]} 74. g7+ {[%clk 0:00:33.2]} 74... Kg8
{[%clk 0:00:08.3]} 75. Kg6 {[%clk 0:00:34.1]} 1/2-1/2